bitfinex-derivatives/quotes_BTCF0:USTF0_20251207
["timestamp","ask_amount","ask_price","bid_price","bid_amount"]
[1765066141910,0.08100033,89384.0,89383.0,0.05697]
[1765066142105,0.09386033,89384.0,89383.0,0.0298]
[1765066142719,0.09386033,89384.0,89383.0,0.0294643]
[1765066143213,0.05598,89381.0,89380.0,0.00016785]
[1765066143517,0.08100033,89381.0,89380.0,0.00016785]
[1765066144818,0.08200033,89381.0,89380.0,0.00016785]
[1765066145719,0.08300033,89381.0,89380.0,0.00016785]
[1765066147519,0.08200033,89381.0,89380.0,0.00016785]
[1765066147721,0.08100033,89381.0,89380.0,0.00016785]
[1765066147920,0.08200033,89381.0,89380.0,0.00016785]
[1765066154221,0.08200033,89381.0,89380.0,0.07258785]
[1765066154424,0.60108033,89381.0,89380.0,0.07258785]
[1765066154726,0.60008033,89381.0,89380.0,0.07258785]
[1765066156127,0.02502033,89381.0,89380.0,0.07258785]
[1765066156318,0.05698785,89397.0,89396.0,0.05612]
[1765066156518,0.08179384,89397.0,89396.0,0.05612]
[1765066157425,0.08279384,89397.0,89396.0,0.05612]
[1765066157620,0.60191384,89397.0,89396.0,0.05612]
[1765066157923,0.60491384,89397.0,89396.0,0.05612]
[1765066158122,0.08579384,89397.0,89396.0,0.05612]
[1765066167034,0.0856416,89397.0,89396.0,0.05612]
[1765066167236,0.0856416,89397.0,89390.0,0.05612]
[1765066167237,0.01304,89396.0,89390.0,0.05612]
[1765066167438,0.05682,89391.0,89390.0,0.05612]
[1765066167642,0.08147375,89391.0,89390.0,0.05612]
[1765066168439,0.08147375,89391.0,89390.0,0.07242]
[1765066169151,0.08247375,89391.0,89390.0,0.07242]
[1765066170447,0.08347375,89391.0,89390.0,0.05612]
[1765066170644,0.02665375,89391.0,89385.0,0.05612]
[1765066170945,0.05682,89386.0,89385.0,0.05612]
[1765066172036,0.05682,89386.0,89385.0,0.07242]
[1765066173440,0.05782,89386.0,89385.0,0.07242]
[1765066176136,0.05782,89386.0,89385.0,0.05612]
[1765066177248,0.08248325,89386.0,89385.0,0.05612]
[1765066183253,0.0825051,89386.0,89385.0,0.05612]
[1765066192752,0.0256851,89386.0,89385.0,0.05612]
[1765066196854,0.0823651,89386.0,89385.0,0.05612]
[1765066197049,0.0256851,89386.0,89385.0,0.0673055]
[1765066201165,0.00016785,89397.0,89396.0,0.07216]
[1765066201360,0.05668,89418.0,89417.0,0.05552]
[1765066201558,0.05668,89418.0,89416.0,0.01541]
[1765066201559,0.05668,89409.0,89408.0,0.05552]
[1765066201767,0.05668,89401.0,89400.0,0.05552]
[1765066201970,0.05668,89396.0,89395.0,0.05552]
[1765066203273,0.02909674,89404.0,89403.0,0.05552]
[1765066203583,0.05684674,89404.0,89403.0,0.05552]
[1765066204567,0.05684674,89404.0,89403.0,0.05652]
[1765066218298,0.05684674,89404.0,89403.0,0.07365]
[1765066223394,0.00016674,89404.0,89403.0,0.07365]
[1765066225191,0.02816674,89404.0,89403.0,0.07365]
[1765066225499,0.05749674,89404.0,89403.0,0.07365]
[1765066226302,0.08190532,89404.0,89403.0,0.07365]
[1765066229398,0.05257532,89404.0,89403.0,0.07365]
[1765066229603,0.02457532,89404.0,89403.0,0.07365]
[1765066232912,0.08826296,89416.0,89415.0,0.07091]
[1765066233102,0.028,89416.0,89415.0,0.07091]
[1765066233503,0.06026296,89421.0,89415.0,0.07091]
[1765066233703,0.11759296,89421.0,89420.0,0.07287]
[1765066233904,0.05733,89421.0,89420.0,0.07287]
[1765066235301,0.06133,89421.0,89420.0,0.07287]
[1765066239604,0.06133,89421.0,89420.0,0.05574]
[1765066240505,0.06133,89421.0,89420.0,0.07287]
[1765066242811,0.06133,89421.0,89420.0,0.10231]
[1765066243207,0.004,89421.0,89420.0,0.10231]
[1765066244107,0.06026296,89434.0,89420.0,0.10231]
[1765066244308,0.05473,89434.0,89433.0,0.0553]
[1765066244504,0.57914296,89438.0,89428.0,0.01787]
[1765066244505,0.60624296,89438.0,89437.0,0.0553]
[1765066244806,0.05473,89440.0,89439.0,0.0553]
[1765066245008,0.07903058,89440.0,89439.0,0.0553]
[1765066246007,0.08203058,89440.0,89439.0,0.0553]
[1765066249006,0.07903058,89440.0,89439.0,0.0553]
[1765066249208,0.07903058,89440.0,89439.0,0.0603]
[1765066253119,0.07903058,89440.0,89439.0,0.005]
[1765066253326,0.09194058,89440.0,89439.0,0.005]
[1765066254024,0.05473,89432.0,89431.0,0.00016775]
[1765066254233,0.05473,89432.0,89431.0,0.02780775]
[1765066254718,0.09190651,89432.0,89431.0,0.00016775]
[1765066254922,0.05473,89421.0,89420.0,0.05708]
[1765066255118,0.05473,89421.0,89420.0,0.02944]
[1765066255326,0.0788731,89421.0,89420.0,0.02944]
[1765066257629,0.0788731,89421.0,89420.0,0.03144]
[1765066261941,0.0788731,89421.0,89420.0,0.002]
[1765066262243,0.0572,89413.0,89412.0,0.00016775]
[1765066262436,0.0813431,89413.0,89412.0,0.00016775]
[1765066262637,0.0813431,89413.0,89400.0,0.05662]
[1765066262638,0.0572,89401.0,89400.0,0.05662]
[1765066262830,0.08135883,89401.0,89400.0,0.05662]
[1765066263030,0.0572,89391.0,89390.0,0.23963391]
[1765066263234,0.0572,89391.0,89390.0,0.07449]
[1765066264338,0.0572,89391.0,89390.0,0.08549]
[1765066265138,0.0572,89391.0,89390.0,0.08649]
[1765066272646,0.0572,89391.0,89390.0,0.06862]
[1765066275957,0.0572,89391.0,89390.0,0.012]
[1765066281254,0.0814993,89391.0,89390.0,0.012]
[1765066288765,0.0814993,89391.0,89390.0,0.03967]
[1765066289660,0.0814993,89391.0,89390.0,0.012]
[1765066293366,0.0814993,89391.0,89390.0,0.03967]
[1765066296168,0.0242993,89391.0,89390.0,0.06868]
[1765066303767,0.0807093,89391.0,89390.0,0.06868]
[1765066305277,0.0807093,89391.0,89390.0,0.012]
[1765066306775,0.0807093,89391.0,89382.0,0.03151775]
[1765066306776,0.05641,89383.0,89382.0,0.03151775]
[1765066306972,0.0807093,89383.0,89382.0,0.03151775]
[1765066307278,0.0807093,89383.0,89382.0,0.00016775]
[1765066307969,0.0807093,89383.0,89362.0,0.0599045]
[1765066308175,0.05641,89369.0,89368.0,0.07304]
[1765066309668,0.05657775,89377.0,89376.0,0.05527]
[1765066309872,0.08091075,89377.0,89376.0,0.05527]
[1765066311183,0.08391075,89377.0,89376.0,0.05527]
[1765066312078,0.08091075,89377.0,89376.0,0.05527]
[1765066312281,0.08391075,89377.0,89376.0,0.05527]
[1765066312679,0.05777,89369.0,89368.0,0.10719]
[1765066313384,0.05777,89369.0,89368.0,0.07584]
[1765066314484,0.05977,89369.0,89368.0,0.07584]
[1765066317575,0.05977,89369.0,89368.0,0.05807]
[1765066321385,0.08407695,89369.0,89368.0,0.05807]
[1765066324590,0.08407695,89369.0,89368.0,0.07433]
[1765066325388,0.05977,89369.0,89368.0,0.07433]
[1765066330095,0.08406999,89369.0,89368.0,0.07433]
[1765066332595,0.08406999,89369.0,89368.0,0.05807]
[1765066334196,0.05579,89368.0,89367.0,0.00011884]
[1765066334394,0.08008999,89368.0,89367.0,0.05677884]
[1765066336096,0.08208999,89368.0,89367.0,0.05677884]
[1765066337998,0.08208999,89368.0,89367.0,0.02883884]
[1765066338202,0.08208999,89368.0,89360.0,0.03152775]
[1765066338203,0.05579,89367.0,89360.0,0.03152775]
[1765066338392,0.08008999,89367.0,89360.0,0.03152775]
[1765066339086,0.05592084,89367.0,89360.0,0.03152775]
[1765066339286,0.05592084,89367.0,89360.0,0.08818775]
[1765066339287,0.05579,89361.0,89360.0,0.08818775]
[1765066339694,0.05579,89361.0,89360.0,0.05682775]
[1765066340901,0.0669785,89361.0,89360.0,0.05682775]
[1765066342496,0.0669795,89353.0,89352.0,0.05666]
[1765066342793,0.0669795,89353.0,89352.0,0.07394]
[1765066343188,0.05579,89353.0,89352.0,0.07394]
[1765066343599,0.05579,89353.0,89352.0,0.07494]
[1765066343792,0.05579,89353.0,89352.0,0.07894]
[1765066369512,0.05587424,89353.0,89352.0,0.06166]
[1765066369706,0.0797269,89353.0,89352.0,0.06166]
[1765066372618,0.0797269,89353.0,89352.0,0.005]
[1765066373624,0.0797269,89353.0,89352.0,0.03377]
[1765066374223,0.0807269,89353.0,89352.0,0.03277]
[1765066374424,0.0807269,89353.0,89352.0,0.02877]
[1765066374623,0.0877269,89353.0,89352.0,0.02877]
[1765066377024,0.05813,89347.0,89346.0,0.08756]
[1765066377220,0.09313926,89347.0,89346.0,0.08756]
[1765066378216,0.09913926,89347.0,89346.0,0.08756]
[1765066379628,0.09313926,89347.0,89346.0,0.08756]
[1765066379817,0.09913926,89347.0,89346.0,0.08756]
[1765066385623,0.09913926,89347.0,89346.0,0.02255896]
[1765066385829,0.05673,89345.0,89344.0,0.00016785]
[1765066386024,0.08054906,89345.0,89344.0,0.00016785]
[1765066387029,0.08554906,89345.0,89344.0,0.00016785]
[1765066387330,0.08554906,89345.0,89326.0,0.00027988]
[1765066387638,0.05673,89327.0,89326.0,0.05614988]
[1765066387820,0.16547165,89336.0,89326.0,0.05614988]
[1765066387821,0.0679222,89332.0,89331.0,0.07385]
[1765066388020,0.09182412,89332.0,89331.0,0.07385]
[1765066389522,0.02390192,89332.0,89331.0,0.07385]
[1765066389722,0.02590192,89332.0,89331.0,0.07385]
[1765066390336,0.09382402,89332.0,89331.0,0.05587]
[1765066392936,0.09382402,89332.0,89331.0,0.05745]
[1765066395133,0.09382402,89332.0,89326.0,0.00027988]
[1765066395134,0.0678228,89327.0,89326.0,0.00027988]
[1765066395335,0.09162004,89327.0,89326.0,0.00027988]
[1765066397245,0.06958,89324.0,89323.0,0.00016785]
[1765066397445,0.09350808,89324.0,89323.0,0.00016785]
[1765066398530,0.09350808,89324.0,89323.0,0.00116785]
[1765066399048,0.09850808,89324.0,89323.0,0.00116785]
[1765066399238,0.09850808,89324.0,89323.0,0.00016785]
[1765066411963,0.09850808,89324.0,89323.0,0.02962785]
[1765066412155,0.02892808,89324.0,89323.0,0.05907785]
[1765066413661,0.02392808,89324.0,89323.0,0.05907785]
[1765066413860,0.02892808,89324.0,89323.0,0.05907785]
[1765066414361,0.02792808,89324.0,89323.0,0.05907785]
[1765066420272,0.08455808,89324.0,89323.0,0.05907785]
[1765066420469,0.08455808,89324.0,89323.0,0.00016785]
[1765066420861,0.08455808,89324.0,89316.0,0.04087]
[1765066420862,0.067824,89317.0,89316.0,0.02387]
[1765066421067,0.0678245,89313.0,89312.0,0.00011927]
[1765066421266,0.066546,89301.0,89300.0,0.07503]
[1765066421461,0.60970324,89301.0,89300.0,0.07503]
[1765066422176,0.60980652,89301.0,89300.0,0.07503]
[1765066422873,0.05484,89293.0,89292.0,0.04702228]
[1765066423073,0.07863724,89293.0,89292.0,0.07559228]
[1765066423268,0.05102724,89293.0,89292.0,0.07559228]
[1765066424161,0.05102724,89293.0,89292.0,0.08259228]
[1765066424162,0.07863724,89293.0,89292.0,0.08259228]
[1765066424471,0.07874659,89293.0,89292.0,0.00711228]
[1765066424778,0.0660378,89287.0,89270.0,0.01661]
[1765066425079,0.05484,89271.0,89270.0,0.07509]
[1765066425264,0.59828563,89271.0,89270.0,0.07509]
[1765066426174,0.59828563,89271.0,89270.0,0.05848]
[1765066427171,0.05484,89266.0,89265.0,0.05848]
[1765066427365,0.07863724,89266.0,89265.0,0.05848]
[1765066427567,0.07863724,89266.0,89265.0,0.02991]
[1765066427871,0.05484,89256.0,89255.0,0.07509]
[1765066428075,0.05492784,89256.0,89255.0,0.07509]
[1765066428467,8.784e-05,89256.0,89255.0,0.07509]
[1765066429074,8.784e-05,89256.0,89255.0,0.07609]
[1765066430077,8.784e-05,89256.0,89255.0,0.07709]
[1765066441068,0.02854784,89256.0,89255.0,0.07709]
[1765066441275,8.784e-05,89256.0,89255.0,0.07709]
[1765066441478,0.05584784,89256.0,89255.0,0.07709]
[1765066444273,8.784e-05,89256.0,89255.0,0.07709]
[1765066448487,0.0111999,89270.0,89269.0,0.05895]
[1765066448875,0.03551493,89270.0,89269.0,0.05895]
[1765066449483,0.02440821,89270.0,89269.0,0.05895]
[1765066449682,0.03040821,89270.0,89269.0,0.05895]
[1765066450286,0.05886821,89270.0,89269.0,0.05895]
[1765066451489,0.03040821,89270.0,89269.0,0.05895]
[1765066451891,0.05964821,89270.0,89269.0,0.05895]
[1765066452984,0.03040821,89270.0,89269.0,0.05895]
[1765066454589,0.05691794,89279.0,89278.0,0.05687]
[1765066455493,0.00023703,89279.0,89278.0,0.05687]
[1765066455795,0.00823703,89279.0,89278.0,0.05787]
[1765066456591,0.00823703,89279.0,89278.0,0.0690689]
[1765066458283,0.00823703,89279.0,89278.0,0.05787]
[1765066466489,0.03238214,89279.0,89278.0,0.05787]
[1765066467004,0.06162214,89279.0,89278.0,0.05787]
[1765066468303,0.06162246,89279.0,89278.0,0.05787]
[1765066468603,0.08913246,89279.0,89278.0,0.05787]
[1765066470504,0.08913465,89279.0,89278.0,0.05787]
[1765066472610,0.08913465,89279.0,89278.0,0.02898]
[1765066473008,0.08913465,89279.0,89278.0,0.001]
[1765066473411,0.05675,89266.0,89265.0,0.05687]
[1765066473712,0.08090808,89266.0,89265.0,0.05687]
[1765066474014,0.08090808,89266.0,89256.0,0.05687]
[1765066474015,0.05675,89257.0,89256.0,0.05687]
[1765066474211,0.08091283,89257.0,89256.0,0.05687]
[1765066475098,0.08091283,89257.0,89246.0,0.01148293]
[1765066475099,0.05675,89250.0,89249.0,0.05696635]
[1765066475313,0.05681909,89250.0,89249.0,0.05696635]
[1765066476213,0.05681909,89250.0,89249.0,0.05896635]
[1765066477511,0.05681909,89250.0,89249.0,0.06496635]
[1765066479115,0.08098536,89250.0,89249.0,0.06496635]
[1765066479908,0.09753536,89250.0,89249.0,0.06496635]
[1765066480216,0.08098536,89250.0,89249.0,0.06496635]
[1765066481306,0.09706536,89250.0,89249.0,0.06496635]
[1765066481516,0.09706536,89250.0,89249.0,0.00809635]
[1765066482517,0.09706536,89250.0,89249.0,0.03454635]
[1765066483215,0.09706536,89250.0,89249.0,0.06409635]
[1765066483423,0.09706536,89250.0,89249.0,0.05809635]
[1765066483614,0.10206536,89250.0,89249.0,0.05809635]
[1765066485325,0.10206536,89250.0,89249.0,0.02854635]
[1765066486724,0.08598536,89250.0,89249.0,0.05809635]
[1765066489223,0.10097536,89250.0,89249.0,0.05809635]
[1765066489425,0.10097536,89250.0,89249.0,0.02854635]
[1765066490126,0.10097536,89250.0,89249.0,9.635e-05]
[1765066491720,0.10097536,89250.0,89249.0,0.05809635]
[1765066493223,0.08598536,89250.0,89249.0,0.05809635]
[1765066493632,0.57851536,89250.0,89249.0,0.05809635]
[1765066493835,0.05761536,89250.0,89249.0,0.05809635]
[1765066494033,0.08739536,89250.0,89249.0,0.05809635]
[1765066496035,0.08239536,89250.0,89249.0,0.05809635]
[1765066496236,0.08739536,89250.0,89249.0,0.05809635]
[1765066501435,0.00506909,89250.0,89249.0,0.05809635]
[1765066501637,0.00016804,89258.0,89257.0,0.05579]
[1765066501638,0.05701804,89258.0,89257.0,0.05579]
[1765066501938,0.08127966,89258.0,89257.0,0.05579]
[1765066502134,0.05290966,89258.0,89257.0,0.05579]
[1765066502439,0.08127966,89258.0,89257.0,0.05579]
[1765066502837,0.02442966,89258.0,89257.0,0.05579]
[1765066503941,0.02642966,89258.0,89257.0,0.05579]
[1765066504343,0.02542966,89258.0,89257.0,0.05579]
[1765066505643,0.05390966,89258.0,89257.0,0.05579]
[1765066507239,0.09348106,89258.0,89257.0,0.05579]
[1765066507441,0.05685,89250.0,89249.0,0.05588635]
[1765066508337,0.02848,89250.0,89249.0,0.05588635]
[1765066508534,0.0396821,89253.0,89252.0,0.05579]
[1765066508733,0.0923473,89253.0,89252.0,0.05579]
[1765066510044,0.0933473,89253.0,89252.0,0.05579]
[1765066510549,0.0923473,89253.0,89252.0,0.05579]
[1765066510745,0.0943473,89253.0,89252.0,0.05579]
[1765066511645,0.0831452,89253.0,89252.0,0.05579]
[1765066522355,0.0811452,89253.0,89252.0,0.05579]
[1765066522657,0.0831452,89253.0,89252.0,0.05579]
[1765066524958,0.0831452,89253.0,89252.0,0.06716]
[1765066525254,0.0811452,89253.0,89252.0,0.06716]
[1765066525450,0.0831452,89253.0,89252.0,0.06716]
[1765066529457,0.0821452,89253.0,89252.0,0.05579]
[1765066529860,0.08196851,89253.0,89252.0,0.05579]
[1765066539273,0.09317051,89253.0,89252.0,0.05579]
[1765066544676,0.07604,89250.0,89249.0,9.635e-05]
[1765066544871,0.10015851,89250.0,89249.0,9.635e-05]
[1765066545771,0.07604,89250.0,89249.0,9.635e-05]
[1765066545976,0.10016292,89250.0,89249.0,9.635e-05]
[1765066547766,0.10316292,89250.0,89249.0,9.635e-05]
[1765066552186,0.10316292,89250.0,89249.0,0.02958635]
[1765066552386,0.10316292,89250.0,89249.0,0.05752635]
[1765066553487,0.10316292,89250.0,89249.0,0.02738635]
[1765066553887,0.10316292,89250.0,89249.0,9.635e-05]
[1765066554090,0.62304292,89250.0,89249.0,0.05532635]
[1765066554285,0.60636292,89250.0,89249.0,0.05532635]
[1765066556388,0.08648292,89250.0,89249.0,0.05532635]
[1765066557489,0.08648292,89250.0,89249.0,9.635e-05]
[1765066557788,0.08648292,89250.0,89249.0,0.02738635]
[1765066558988,0.08648292,89250.0,89249.0,0.05532635]
[1765066562784,0.08548292,89250.0,89249.0,0.05532635]
[1765066566388,0.08348292,89250.0,89249.0,0.05532635]
[1765066579594,0.08348292,89250.0,89249.0,9.635e-05]
[1765066582413,0.0670134,89242.0,89241.0,0.03486]
[1765066582707,0.09113632,89242.0,89241.0,0.06221]
[1765066582908,0.09113632,89242.0,89241.0,0.05458]
[1765066583397,0.09121683,89242.0,89241.0,0.05458]
[1765066584312,0.09121683,89242.0,89241.0,0.05658]
[1765066584811,0.61109683,89242.0,89241.0,0.05658]
[1765066585415,0.59989343,89242.0,89241.0,0.05658]
[1765066590916,0.59989343,89242.0,89241.0,0.02935]
[1765066594815,0.59989343,89242.0,89241.0,0.05658]
[1765066595518,0.02420343,89242.0,89241.0,0.05658]
[1765066596521,8.051e-05,89242.0,89241.0,0.05658]
[1765066596814,0.02754051,89242.0,89241.0,0.05658]
[1765066597119,0.08000424,89242.0,89241.0,0.05658]
[1765066597314,0.05589051,89242.0,89241.0,0.05658]
[1765066598623,0.02754051,89242.0,89241.0,0.05658]
[1765066601717,8.051e-05,89242.0,89241.0,0.05658]
[1765066601922,0.05298536,89242.0,89241.0,0.05658]
[1765066603517,0.02887051,89242.0,89241.0,0.05658]
[1765066603917,0.05298589,89242.0,89241.0,0.05658]
[1765066604425,0.05840051,89242.0,89241.0,0.05658]
[1765066605123,0.08251687,89242.0,89241.0,0.05658]
[1765066605516,8.051e-05,89242.0,89241.0,0.05658]
[1765066606226,0.02887051,89242.0,89241.0,0.05658]
[1765066607623,8.051e-05,89242.0,89241.0,0.05658]
[1765066608928,0.0112023,89252.0,89248.0,0.0112025]
[1765066609115,0.00016804,89258.0,89257.0,0.05643]
[1765066609825,0.02428698,89258.0,89257.0,0.05643]
[1765066610526,0.00216804,89258.0,89257.0,0.05643]
[1765066612323,0.0695202,89268.0,89267.0,0.05643]
[1765066612628,0.09360735,89268.0,89267.0,0.05643]
[1765066613832,0.09560735,89268.0,89267.0,0.05643]
[1765066614530,0.03079,89268.0,89267.0,0.06737046]
[1765066614730,0.03079,89268.0,89267.0,0.05643]
[1765066614731,0.002,89268.0,89267.0,0.05643]
[1765066618027,0.05852,89268.0,89267.0,0.05643]
[1765066619520,0.05652,89260.0,89259.0,0.05721804]
[1765066621532,0.05852,89268.0,89267.0,0.05705]
[1765066621720,0.00016804,89276.0,89275.0,0.05705]
[1765066621919,0.00016804,89276.0,89275.0,0.0682493]
[1765066622126,0.0568,89286.0,89285.0,0.05705]
[1765066622632,0.02925,89286.0,89285.0,0.05705]
[1765066623218,0.03025,89286.0,89285.0,0.05705]
[1765066623431,0.0578,89286.0,89285.0,0.05705]
[1765066623632,0.00128,89286.0,89285.0,0.05705]
[1765066623825,0.0578,89286.0,89285.0,0.05705]
[1765066624935,0.0568,89286.0,89285.0,0.05805]
[1765066625528,0.0568,89286.0,89285.0,0.05705]
[1765066625734,0.0568,89286.0,89285.0,0.06005]
[1765066628036,0.0568,89286.0,89285.0,0.05705]
[1765066628336,0.0568,89286.0,89285.0,0.05805]
[1765066630541,0.0568,89286.0,89285.0,0.07507]
[1765066636245,0.08085584,89286.0,89285.0,0.07507]
[1765066637950,0.08085584,89286.0,89285.0,0.05805]
[1765066646566,0.02433584,89286.0,89285.0,0.05805]
[1765066646970,0.08235584,89286.0,89285.0,0.05805]
[1765066649071,0.09355374,89286.0,89285.0,0.001]
[1765066649271,0.09355374,89286.0,89285.0,0.0287]
[1765066649474,0.09355374,89286.0,89285.0,0.05829]
[1765066653975,0.08235584,89286.0,89285.0,0.05829]
[1765066654172,0.02433584,89286.0,89285.0,0.05829]
[1765066654973,0.02433584,89286.0,89285.0,0.069488]
[1765066664287,0.00028,89286.0,89285.0,0.069488]
[1765066664783,0.00016804,89294.0,89293.0,0.05745]
[1765066665179,0.02431324,89294.0,89293.0,0.05745]
[1765066666283,0.00016804,89294.0,89293.0,0.05745]
[1765066666682,0.00116804,89294.0,89293.0,0.05745]
[1765066667587,0.00016804,89294.0,89293.0,0.05745]
[1765066667788,0.00016804,89294.0,89293.0,0.05845]
[1765066668188,0.05664804,89294.0,89293.0,0.05845]
[1765066668790,0.08077812,89294.0,89293.0,0.05845]
[1765066669487,0.08077812,89294.0,89293.0,0.001]
[1765066670791,0.05648,89291.0,89290.0,0.03422]
[1765066670991,0.08061008,89291.0,89290.0,0.03422]
[1765066671595,0.08061008,89291.0,89290.0,0.06175]
[1765066671783,0.08061008,89291.0,89290.0,0.09167]
[1765066671989,0.08061008,89291.0,89290.0,0.10943]
[1765066672293,0.08061008,89291.0,89290.0,0.09167]
[1765066672796,0.08061008,89291.0,89290.0,0.09267]
[1765066673194,0.08061008,89291.0,89290.0,0.09167]
[1765066673495,0.08061008,89291.0,89290.0,0.09267]
[1765066674697,0.08061008,89291.0,89290.0,0.03522]
[1765066675196,0.08061008,89291.0,89290.0,0.09267]
[1765066675693,0.08061008,89291.0,89290.0,0.03522]
[1765066676600,0.08061008,89291.0,89290.0,0.03422]
[1765066676798,0.08061008,89291.0,89290.0,0.03522]
[1765066677396,0.08161008,89291.0,89290.0,0.03422]
[1765066680495,0.08161008,89291.0,89285.0,0.00016804]
[1765066680496,0.0689879,89286.0,89285.0,0.00016804]
[1765066680802,0.05779,89260.0,89259.0,0.05673]
[1765066680992,0.02413008,89260.0,89259.0,0.05673]
[1765066681189,0.0689899,89270.0,89269.0,0.05673]
[1765066681388,0.09303137,89270.0,89269.0,0.05673]
[1765066681596,0.09303137,89270.0,89269.0,0.07424154]
[1765066682799,0.09303137,89270.0,89269.0,0.08224154]
[1765066683095,0.05334147,89270.0,89269.0,0.08224154]
[1765066683302,0.02404147,89270.0,89269.0,0.07424154]
[1765066683501,0.02404147,89270.0,89269.0,0.07624154]
[1765066683701,0.05334147,89270.0,89269.0,0.07624154]
[1765066685500,0.08183147,89270.0,89269.0,0.07624154]
[1765066689406,0.05779,89270.0,89269.0,0.07624154]
[1765066690201,0.07443,89270.0,89269.0,0.07624154]
[1765066690407,0.09841736,89270.0,89269.0,0.01951154]
[1765066692006,0.09841736,89270.0,89269.0,0.01751154]
[1765066694303,0.05328736,89270.0,89269.0,0.07475154]
[1765066694508,0.08307736,89270.0,89269.0,0.07475154]
[1765066694708,0.0111996,89273.0,89272.0,0.05724]
[1765066695013,0.09490694,89273.0,89272.0,0.07475154]
[1765066696210,0.09490694,89273.0,89272.0,0.01751154]
[1765066696611,0.05973,89262.0,89261.0,0.10455804]
[1765066696811,0.05973,89262.0,89261.0,0.12206882]
[1765066697110,0.05973,89262.0,89261.0,0.07491882]
[1765066698010,0.0411392,89276.0,89275.0,0.05724]
[1765066698207,0.06512759,89276.0,89275.0,0.07475078]
[1765066698409,0.09491759,89276.0,89275.0,0.07475078]
[1765066699113,0.02398839,89276.0,89275.0,0.07475078]
[1765066699514,0.00016804,89278.0,89277.0,0.05724]
[1765066699709,0.03010804,89278.0,89277.0,0.07475078]
[1765066700213,0.05989804,89278.0,89277.0,0.07475078]
[1765066701316,0.08387919,89278.0,89277.0,0.07475078]
[1765066702213,0.05989804,89278.0,89277.0,0.07475078]
[1765066702416,0.02415159,89278.0,89277.0,0.07475078]
[1765066702614,0.00016804,89278.0,89277.0,0.07475078]
[1765066704512,0.00016804,89278.0,89277.0,0.07575078]
[1765066705014,0.00016804,89278.0,89277.0,0.07475078]
[1765066705214,0.00016804,89278.0,89277.0,0.07675078]
[1765066705620,0.05973,89291.0,89286.0,0.01755]
[1765066705925,0.08372262,89290.0,89289.0,0.05724]
[1765066706216,0.08372262,89290.0,89289.0,0.07475078]
[1765066721953,0.05973,89290.0,89289.0,0.07475078]
[1765066722150,0.08371561,89290.0,89289.0,0.07475078]
[1765066725861,0.08371561,89290.0,89289.0,0.07475078]
[1765066741461,0.05240561,89290.0,89289.0,0.07475078]
[1765066741960,0.08119561,89290.0,89289.0,0.07475078]
[1765066742960,0.08119561,89290.0,89289.0,0.07675078]
[1765066743159,0.02398561,89290.0,89289.0,0.07675078]
[1765066743366,0.00016804,89298.0,89297.0,0.05657]
[1765066743669,0.00016804,89298.0,89297.0,0.07408078]
[1765066744460,0.05737804,89298.0,89297.0,0.07408078]
[1765066746367,0.05737804,89298.0,89297.0,0.07407484]
[1765066749073,0.05737804,89298.0,89297.0,0.01750484]
[1765066750070,0.05737804,89298.0,89297.0,0.07407484]
[1765066753271,0.05737804,89298.0,89297.0,0.07407533]
[1765066753469,0.00016804,89298.0,89297.0,0.07407533]
[1765066754874,0.05561,89314.0,89313.0,0.05707]
[1765066755068,0.05561,89314.0,89313.0,0.07457533]
[1765066755269,0.07950425,89314.0,89313.0,0.07457533]
[1765066755974,0.07950425,89314.0,89313.0,0.01750533]
[1765066756165,0.08550425,89314.0,89313.0,0.01750533]
[1765066757670,0.0668054,89306.0,89305.0,0.00016804]
[1765066757871,0.09069965,89306.0,89305.0,0.00016804]
[1765066758264,0.09069965,89306.0,89286.0,0.02821]
[1765066758265,0.05561,89287.0,89286.0,0.08528]
[1765066760166,0.05561,89287.0,89286.0,0.08728]
[1765066760868,0.05561,89287.0,89286.0,0.03021]
[1765066761073,0.0794239,89287.0,89286.0,0.03021]
[1765066761579,0.0794239,89287.0,89286.0,0.02921]
[1765066762075,0.0794239,89287.0,89286.0,0.08528]
[1765066762378,0.0794239,89287.0,89286.0,0.10285]
[1765066762576,0.0238139,89287.0,89286.0,0.10285]
[1765066762776,0.0258139,89287.0,89286.0,0.10185]
[1765066763174,0.0530339,89287.0,89286.0,0.10185]
[1765066764380,0.0510339,89287.0,89286.0,0.10185]
[1765066764582,0.0238139,89287.0,89286.0,0.10185]
[1765066764775,0.0510339,89287.0,89286.0,0.10185]
[1765066765178,0.0794239,89287.0,89286.0,0.10285]
[1765066766082,0.0794239,89287.0,89286.0,0.10185]
[1765066766279,0.0794239,89287.0,89286.0,0.10285]
[1765066766479,0.0794239,89287.0,89286.0,0.02921]
[1765066767177,0.0794239,89287.0,89286.0,0.08628]
[1765066767382,0.0510339,89287.0,89286.0,0.08628]
[1765066768379,0.0794239,89287.0,89286.0,0.02821]
[1765066769184,0.0794239,89287.0,89286.0,0.05785]
[1765066769684,0.0794239,89287.0,89286.0,0.08628]
[1765066770584,0.0794239,89287.0,89286.0,0.10185]
[1765066770778,0.0794239,89287.0,89286.0,0.10285]
[1765066772180,0.0794239,89287.0,89286.0,0.10185]
[1765066772385,0.0794239,89287.0,89286.0,0.08628]
[1765066773186,0.0794239,89287.0,89286.0,0.10285]
[1765066774382,0.0794239,89287.0,89286.0,0.10185]
[1765066776588,0.0794239,89287.0,89286.0,0.05685]
[1765066776790,0.0794239,89287.0,89286.0,0.02821]
[1765066777184,0.0794239,89287.0,89286.0,0.05685]
[1765066777591,0.0794239,89287.0,89286.0,0.05785]
[1765066777887,0.0794239,89287.0,89286.0,0.08628]
[1765066778082,0.0794239,89287.0,89286.0,0.08528]
[1765066778684,0.0794239,89287.0,89286.0,0.10185]
[1765066779387,0.0510339,89287.0,89286.0,0.10185]
[1765066779980,0.0794239,89287.0,89286.0,0.10185]
[1765066780789,0.0794239,89287.0,89286.0,0.10285]
[1765066781293,0.0794239,89287.0,89286.0,0.10185]
[1765066781590,0.0794239,89287.0,89286.0,0.10285]
[1765066782086,0.0794239,89287.0,89286.0,0.08628]
[1765066783593,0.0794239,89287.0,89286.0,0.08528]
[1765066784692,0.0794239,89287.0,89286.0,0.10243]
[1765066784990,0.0238139,89287.0,89286.0,0.10243]
[1765066786395,0.0238139,89287.0,89286.0,0.10343]
[1765066786897,0.0238139,89287.0,89286.0,0.10243]
[1765066787099,0.0238139,89287.0,89286.0,0.10343]